fUSD/lending_fUSD_20260614
["ID","MTS","AMOUNT","RATE_DAILY","PERIOD"]
[425032611,1781437842000,-522.94,0.00027671,8]
[425032616,1781437842000,-423.51,0.00027671,8]
[425032617,1781437842000,-209.78,0.00027671,8]
[425032618,1781437842000,-500.0,0.00027671,8]
[425032615,1781437842000,-500.0,0.00027671,8]
[425032620,1781437842000,-500.0,0.00027671,8]
[425032619,1781437842000,-236.56,0.00027671,8]
[425032567,1781437842000,-500.0,0.0002767,8]
[425032610,1781437842000,-500.0,0.00027671,8]
[425032594,1781437842000,-500.0,0.00027671,8]
[425032608,1781437842000,-500.0,0.00027671,8]
[425032592,1781437842000,-193.3,0.00027671,8]
[425032565,1781437842000,-500.0,0.0002767,8]
[425032595,1781437842000,-500.0,0.00027671,8]
[425032570,1781437842000,-500.0,0.0002767,8]
[425032569,1781437842000,-500.0,0.0002767,8]
[425032580,1781437842000,-500.0,0.0002767,8]
[425032571,1781437842000,-500.0,0.0002767,8]
[425032576,1781437842000,-500.0,0.0002767,8]
[425032579,1781437842000,-500.0,0.0002767,8]
[425032572,1781437842000,-500.0,0.0002767,8]
[425032575,1781437842000,-500.0,0.0002767,8]
[425032573,1781437842000,-500.0,0.0002767,8]
[425032577,1781437842000,-500.0,0.0002767,8]
[425032574,1781437842000,-500.0,0.0002767,8]
[425032578,1781437842000,-500.0,0.0002767,8]
[425032591,1781437842000,-610.59,0.00027671,8]
[425032593,1781437842000,-500.0,0.00027671,8]
[425032581,1781437842000,-529.33688092,0.0002767,8]
[425032589,1781437842000,-500.0,0.00027671,8]
[425032583,1781437842000,-300.0,0.0002767,8]
[425032588,1781437842000,-500.0,0.00027671,8]
[425032586,1781437842000,-500.0,0.0002767,2]
[425032584,1781437842000,-500.0,0.0002767,8]
[425032585,1781437842000,-1123.40740569,0.0002767,8]
[425032587,1781437842000,-329.08,0.00027671,8]
[425032582,1781437842000,-500.0,0.0002767,8]
[425032590,1781437842000,-568.88,0.00027671,8]
[425032658,1781437843000,-500.0,0.00027671,8]
[425032657,1781437843000,-475.86,0.00027671,8]
[425032656,1781437843000,-275.33,0.00027671,8]
[425032655,1781437843000,-383.07,0.00027671,8]
[425032660,1781437843000,-312.02,0.00027671,8]
[425032650,1781437843000,-273.48,0.00027671,8]
[425032654,1781437843000,-500.0,0.00027671,8]
[425032653,1781437843000,-521.52,0.00027671,8]
[425032652,1781437843000,-422.76,0.00027671,8]
[425032662,1781437843000,-500.0,0.00027671,8]
[425032651,1781437843000,-500.0,0.00027671,8]
[425032661,1781437843000,-171.49,0.00027671,8]
[425032674,1781437843000,-10274.98755929,0.00027693,2]
[425032664,1781437843000,-1538.17,0.00027671,8]
[425032665,1781437843000,-500.0,0.00027671,8]
[425032666,1781437843000,-1000.0,0.00027671,8]
[425032670,1781437843000,-500.0,0.00027671,8]
[425032669,1781437843000,-2000.0,0.00027671,2]
[425032667,1781437843000,-1000.0,0.00027671,8]
[425032668,1781437843000,-500.0,0.00027671,8]
[425032663,1781437843000,-344.6,0.00027671,8]
[425032671,1781437843000,-235.33,0.00027672,7]
[425032673,1781437843000,-1395.09835287,0.0002769,2]
[425032678,1781437843000,-234.94,0.00027702,30]
[425032645,1781437843000,-500.0,0.00027671,8]
[425032672,1781437843000,-234.94,0.00027672,7]
[425032644,1781437843000,-500.0,0.00027671,8]
[425032621,1781437843000,-192.0,0.00027671,8]
[425032646,1781437843000,-547.12,0.00027671,8]
[425032679,1781437843000,-587.5,0.00027705,120]
[425032623,1781437843000,-500.0,0.00027671,8]
[425032622,1781437843000,-500.0,0.00027671,8]
[425032624,1781437843000,-187.62,0.00027671,8]
[425032625,1781437843000,-500.0,0.00027671,8]
[425032626,1781437843000,-500.0,0.00027671,8]
[425032633,1781437843000,-500.0,0.00027671,8]
[425032634,1781437843000,-500.0,0.00027671,8]
[425032635,1781437843000,-517.72,0.00027671,8]
[425032637,1781437843000,-454.48,0.00027671,8]
[425032627,1781437843000,-500.0,0.00027671,8]
[425032630,1781437843000,-500.0,0.00027671,8]
[425032636,1781437843000,-352.7,0.00027671,8]
[425032632,1781437843000,-500.0,0.00027671,8]
[425032628,1781437843000,-338.44,0.00027671,8]
[425032631,1781437843000,-500.0,0.00027671,8]
[425032629,1781437843000,-219.6,0.00027671,8]
[425032639,1781437843000,-500.0,0.00027671,8]
[425032649,1781437843000,-409.52,0.00027671,8]
[425032638,1781437843000,-500.0,0.00027671,8]
[425032640,1781437843000,-551.82,0.00027671,8]
[425032641,1781437843000,-506.24,0.00027671,8]
[425032642,1781437843000,-325.64,0.00027671,8]
[425032643,1781437843000,-500.0,0.00027671,8]
[425032647,1781437843000,-500.0,0.00027671,8]
[425032648,1781437843000,-500.0,0.00027671,8]
[425032676,1781437843000,-300.0,0.000277,10]
[425032659,1781437843000,-500.0,0.00027671,8]
[425032680,1781437843000,-1071.56,0.00027711,7]
[425032719,1781437843000,-356.34,0.00027945,8]
[425032709,1781437843000,-500.0,0.00027945,8]
[425032715,1781437843000,-332.32494964,0.00027945,8]
[425032712,1781437843000,-500.0,0.00027945,8]
[425032711,1781437843000,-500.0,0.00027945,8]
[425032710,1781437843000,-500.0,0.00027945,8]
[425032721,1781437843000,-579.7,0.00027945,8]
[425032717,1781437843000,-453.94,0.00027945,8]
[425032713,1781437843000,-500.0,0.00027945,8]
[425032723,1781437843000,-500.0,0.00027945,8]
[425032733,1781437843000,-500.0,0.00027945,8]
[425032735,1781437843000,-500.0,0.00027945,8]
[425032707,1781437843000,-500.0,0.00027944,8]
[425032740,1781437843000,-500.0,0.00027945,8]
[425032737,1781437843000,-491.3,0.00027945,8]
[425032742,1781437843000,-578.42,0.00027945,8]
[425032727,1781437843000,-501.88,0.00027945,8]
[425032725,1781437843000,-161.5,0.00027945,8]
[425032731,1781437843000,-500.0,0.00027945,8]
[425032729,1781437843000,-500.0,0.00027945,8]
[425032746,1781437843000,-500.0,0.00027945,60]
[425032744,1781437843000,-500.0,0.00027945,8]
[425032750,1781437843000,-1538.17,0.00027945,8]
[425032748,1781437843000,-341.19,0.00027945,8]
[425032753,1781437843000,-500.0,0.00027945,8]
[425032677,1781437843000,-235.33,0.00027702,30]
[425032738,1781437843000,-200.14,0.00027945,8]
[425032708,1781437843000,-440.5,0.00027945,8]
[425032755,1781437843000,-1000.0,0.00027945,8]
[425032703,1781437843000,-234.94,0.00027885,30]
[425032700,1781437843000,-1063.47,0.00027872,2]
[425032682,1781437843000,-1292.36,0.00027711,7]
[425032681,1781437843000,-1031.45,0.00027711,7]
[425032683,1781437843000,-1063.47,0.00027711,7]
[425032686,1781437843000,-234.94,0.00027733,2]
[425032691,1781437843000,-234.94,0.00027794,30]
[425032688,1781437843000,-234.94,0.00027763,7]
[425032684,1781437843000,-1025.59,0.00027711,7]
[425032687,1781437843000,-235.33,0.00027763,7]
[425032685,1781437843000,-235.33,0.00027733,2]
[425032690,1781437843000,-235.33,0.00027794,30]
[425032689,1781437843000,-500.0,0.00027775,15]
[425032693,1781437843000,-234.94,0.00027824,2]
[425032675,1781437843000,-150.0,0.000277,30]
[425032706,1781437843000,-262.3707909,0.00027936,2]
[425032702,1781437843000,-235.33,0.00027885,30]
[425032704,1781437843000,-235.33,0.00027916,2]
[425032698,1781437843000,-1031.45,0.00027872,2]
[425032692,1781437843000,-235.33,0.00027824,2]
[425032701,1781437843000,-1025.59,0.00027872,2]
[425032697,1781437843000,-1071.56,0.00027872,2]
[425032694,1781437843000,-235.33,0.00027855,7]
[425032696,1781437843000,-1285.84,0.00027872,2]
[425032695,1781437843000,-234.94,0.00027855,7]
[425032757,1781437843000,-1000.0,0.00027945,8]
[425032705,1781437843000,-234.94,0.00027916,2]
[425032699,1781437843000,-1292.36,0.00027872,2]
[425032845,1781437844000,-483.36,0.00028218,8]
[425032836,1781437844000,-200.0,0.000282,2]
[425032843,1781437844000,-500.0,0.00028218,8]
[425032835,1781437844000,-1025.59,0.00028194,7]
[425032825,1781437844000,-1285.84,0.00028194,7]
[425032831,1781437844000,-1292.36,0.00028194,7]
[425032829,1781437844000,-1031.45,0.00028194,7]
[425032833,1781437844000,-1063.47,0.00028194,7]
[425032823,1781437844000,-500.0,0.00028193,8]
[425032827,1781437844000,-1071.56,0.00028194,7]
[425032838,1781437844000,-187.638,0.00028217,19]
[425032841,1781437844000,-1308.072,0.00028217,19]
[425032851,1781437844000,-219.38,0.00028218,8]
[425032858,1781437844000,-500.0,0.00028218,8]
[425032860,1781437844000,-389.97,0.00028218,8]
[425032864,1781437844000,-500.0,0.00028218,8]
[425032849,1781437844000,-500.0,0.00028218,8]
[425032853,1781437844000,-500.0,0.00028218,8]
[425032855,1781437844000,-500.0,0.00028218,8]
[425032862,1781437844000,-500.0,0.00028218,8]
[425032868,1781437844000,-432.88,0.00028218,8]
[425032866,1781437844000,-500.0,0.00028218,8]
[425032872,1781437844000,-500.0,0.00028218,8]
[425032802,1781437844000,-3306.81,0.00028048,2]
[425032876,1781437844000,-622.78,0.00028218,8]
[425032847,1781437844000,-500.0,0.00028218,8]
[425032817,1781437844000,-235.02,0.0002813,7]
[425032791,1781437844000,-1292.36,0.00028033,30]
[425032804,1781437844000,-235.33,0.00028068,30]
[425032874,1781437844000,-573.91,0.00028218,8]
[425032759,1781437844000,-500.0,0.00027945,8]
[425032763,1781437844000,-500.0,0.00027945,8]
[425032767,1781437844000,-234.94,0.00027946,7]
[425032765,1781437844000,-235.33,0.00027946,7]
[425032771,1781437844000,-235.33,0.00027977,30]
[425032769,1781437844000,-365.56,0.00027971,120]
[425032775,1781437844000,-158.24913116,0.00027996,2]
[425032784,1781437844000,-1285.84,0.00028033,30]
[425032782,1781437844000,-27571.7744,0.00028025,2]
[425032780,1781437844000,-234.94,0.00028007,2]
[425032773,1781437844000,-234.94,0.00027977,30]
[425032777,1781437844000,-235.33,0.00028007,2]
[425032793,1781437844000,-1063.47,0.00028033,30]
[425032786,1781437844000,-1071.56,0.00028033,30]
[425032788,1781437844000,-1031.45,0.00028033,30]
[425032795,1781437844000,-1025.59,0.00028033,30]
[425032808,1781437844000,-235.33,0.00028099,2]
[425032810,1781437844000,-234.94,0.00028099,2]
[425032821,1781437844000,-500.0,0.00028193,8]
[425032812,1781437844000,-10009.8688,0.0002811,2]
[425032814,1781437844000,-235.45,0.0002813,7]
[425032797,1781437844000,-235.33,0.00028038,7]
[425032799,1781437844000,-234.94,0.00028038,7]
[425032819,1781437844000,-5748.0,0.00028176,10]
[425032805,1781437844000,-234.94,0.00028068,30]
[425032870,1781437844000,-500.0,0.00028218,8]
[425032761,1781437844000,-2000.0,0.00027945,2]
[425032881,1781437844000,-500.0,0.00028218,8]
[425032949,1781437844000,-384.54746791,0.00028218,8]
[425032951,1781437844000,-500.0,0.00028218,7]
[425032943,1781437844000,-500.0,0.00028218,8]
[425032953,1781437844000,-500.0,0.00028218,8]
[425032962,1781437844000,-500.0,0.00028218,8]
[425032958,1781437844000,-500.0,0.00028218,8]
[425032960,1781437844000,-500.0,0.00028218,8]
[425032965,1781437844000,-551.8,0.00028218,8]
[425032956,1781437844000,-410.84,0.00028218,8]
[425032967,1781437844000,-500.0,0.00028218,8]
[425032971,1781437844000,-500.0,0.00028218,8]
[425032976,1781437844000,-500.0,0.00028218,8]
[425032947,1781437844000,-500.0,0.00028218,8]
[425032974,1781437844000,-500.0,0.00028218,8]
[425032978,1781437844000,-558.56,0.00028218,8]
[425032984,1781437844000,-500.0,0.00028218,8]
[425032982,1781437844000,-567.18,0.00028218,8]
[425032990,1781437844000,-597.21363515,0.00028218,8]
[425032986,1781437844000,-277.97,0.00028218,8]
[425032988,1781437844000,-500.0,0.00028218,8]
[425032993,1781437844000,-500.0,0.00028218,8]
[425032995,1781437844000,-500.0,0.00028218,8]
[425032999,1781437844000,-492.72,0.00028218,8]
[425033001,1781437844000,-500.0,0.00028218,8]
[425032997,1781437844000,-500.0,0.00028218,8]
[425032878,1781437844000,-548.28,0.00028218,8]
[425032980,1781437844000,-313.15,0.00028218,8]
[425032945,1781437844000,-500.0,0.00028218,8]
[425032969,1781437844000,-163.4,0.00028218,8]
[425032932,1781437844000,-500.0,0.00028218,8]
[425032941,1781437844000,-500.0,0.00028218,8]
[425032886,1781437844000,-500.0,0.00028218,8]
[425032885,1781437844000,-233.30181134,0.00028218,8]
[425032883,1781437844000,-500.0,0.00028218,8]
[425032887,1781437844000,-500.0,0.00028218,8]
[425032892,1781437844000,-245.59,0.00028218,8]
[425032894,1781437844000,-500.0,0.00028218,8]
[425032897,1781437844000,-557.83,0.00028218,8]
[425032899,1781437844000,-500.0,0.00028218,8]
[425032913,1781437844000,-500.0,0.00028218,8]
[425032901,1781437844000,-500.0,0.00028218,8]
[425032915,1781437844000,-500.0,0.00028218,8]
[425032903,1781437844000,-500.0,0.00028218,8]
[425032890,1781437844000,-609.54,0.00028218,8]
[425032906,1781437844000,-500.0,0.00028218,8]
[425032908,1781437844000,-500.0,0.00028218,8]
[425032936,1781437844000,-500.0,0.00028218,8]
[425032939,1781437844000,-500.0,0.00028218,8]
[425032930,1781437844000,-500.0,0.00028218,8]
[425032928,1781437844000,-500.0,0.00028218,8]
[425032926,1781437844000,-500.0,0.00028218,8]
[425032934,1781437844000,-496.43,0.00028218,8]
[425032919,1781437844000,-500.0,0.00028218,8]
[425032922,1781437844000,-516.72216188,0.00028218,8]
[425032917,1781437844000,-500.0,0.00028218,8]
[425032910,1781437844000,-500.0,0.00028218,8]
[425032924,1781437844000,-500.0,0.00028218,8]
[425033088,1781437845000,-577.21,0.00028492,8]
[425033080,1781437845000,-392.94997453,0.00028394,7]
[425033082,1781437845000,-308.62050107,0.00028394,7]
[425033064,1781437845000,-382.2845176,0.00028392,7]
[425033078,1781437845000,-162.24796789,0.00028394,7]
[425033075,1781437845000,-358.05164188,0.00028394,7]
[425033073,1781437845000,-335.05979974,0.00028394,7]
[425033066,1781437845000,-313.25344141,0.00028394,7]
[425033070,1781437845000,-349.22320483,0.00028394,7]
[425033094,1781437845000,-568.61,0.00028492,8]
[425033076,1781437845000,-170.46389788,0.00028394,7]
[425033084,1781437845000,-161.82095483,0.00028394,7]
[425033111,1781437845000,-500.0,0.00028492,8]
[425033090,1781437845000,-500.0,0.00028492,8]
[425033086,1781437845000,-154.01187506,0.00028394,7]
[425033109,1781437845000,-500.0,0.00028492,8]
[425033096,1781437845000,-500.0,0.00028492,8]
[425033103,1781437845000,-590.2,0.00028492,8]
[425033110,1781437845000,-500.0,0.00028492,8]
[425033113,1781437845000,-164.72,0.00028492,8]
[425033099,1781437845000,-500.0,0.00028492,8]
[425033101,1781437845000,-500.0,0.00028492,8]
[425033106,1781437845000,-500.0,0.00028492,8]
[425033104,1781437845000,-540.0,0.00028492,8]
[425033058,1781437845000,-152.0,0.0002834,5]
[425033092,1781437845000,-412.97,0.00028492,8]
[425033063,1781437845000,-383.56045961,0.00028392,7]
[425033005,1781437845000,-454.15,0.00028218,8]
[425033068,1781437845000,-347.07245669,0.00028394,2]
[425033003,1781437845000,-331.68,0.00028218,8]
[425033007,1781437845000,-500.0,0.00028218,7]
[425033009,1781437845000,-500.0,0.00028218,7]
[425033011,1781437845000,-610.73,0.00028218,7]
[425033015,1781437845000,-500.0,0.00028219,8]
[425033013,1781437845000,-500.0,0.00028219,8]
[425033017,1781437845000,-500.0,0.00028219,8]
[425033019,1781437845000,-500.0,0.00028219,8]
[425033021,1781437845000,-196.34,0.00028219,8]
[425033031,1781437845000,-500.0,0.00028219,8]
[425033033,1781437845000,-500.0,0.00028219,8]
[425033037,1781437845000,-500.0,0.00028219,2]
[425033060,1781437845000,-157.0,0.0002834,5]
[425033023,1781437845000,-500.0,0.00028219,8]
[425033040,1781437845000,-158.83341279,0.00028219,2]
[425033029,1781437845000,-500.0,0.00028219,8]
[425033027,1781437845000,-621.48,0.00028219,8]
[425033042,1781437845000,-1538.17,0.00028219,8]
[425033025,1781437845000,-500.0,0.00028219,8]
[425033044,1781437845000,-500.0,0.00028219,8]
[425033046,1781437845000,-1000.0,0.00028219,8]
[425033052,1781437845000,-2000.0,0.00028219,2]
[425033050,1781437845000,-500.0,0.00028219,8]
[425033048,1781437845000,-1000.0,0.00028219,8]
[425033054,1781437845000,-2000.0,0.00028258,7]
[425033056,1781437845000,-151.0,0.00028267,2]
[425033035,1781437845000,-500.0,0.00028219,2]
[425033105,1781437845000,-500.0,0.00028492,8]
[425033126,1781437845000,-566.66,0.00028492,8]
[425033131,1781437845000,-500.0,0.00028492,8]
[425033158,1781437845000,-500.0,0.00028492,7]
[425033157,1781437845000,-500.0,0.00028492,7]
[425033161,1781437845000,-610.73,0.00028492,7]
[425033165,1781437845000,-610.73,0.00028492,7]
[425033166,1781437845000,-500.0,0.00028493,8]
[425033156,1781437845000,-500.0,0.00028492,7]
[425033159,1781437845000,-500.0,0.00028492,7]
[425033163,1781437845000,-610.73,0.00028492,7]
[425033164,1781437845000,-610.73,0.00028492,7]
[425033160,1781437845000,-610.73,0.00028492,7]
[425033162,1781437845000,-610.73,0.00028492,7]
[425033178,1781437845000,-519.0,0.00028522,2]
[425033168,1781437845000,-500.0,0.00028493,8]
[425033167,1781437845000,-176.26,0.00028493,8]
[425033174,1781437845000,-2000.0,0.00028493,2]
[425033169,1781437845000,-1538.17,0.00028493,8]
[425033172,1781437845000,-1000.0,0.00028493,8]
[425033171,1781437845000,-1000.0,0.00028493,8]
[425033170,1781437845000,-500.0,0.00028493,8]
[425033175,1781437845000,-500.0,0.00028521,2]
[425033173,1781437845000,-500.0,0.00028493,8]
[425033176,1781437845000,-1359.0,0.00028522,2]
[425033177,1781437845000,-3557.0,0.00028522,2]
[425033179,1781437845000,-383.0,0.00028522,2]
[425033115,1781437845000,-500.0,0.00028492,8]
[425033155,1781437845000,-500.0,0.00028492,7]
[425033152,1781437845000,-500.0,0.00028492,7]
[425033180,1781437845000,-1275.0,0.00028522,2]
[425033150,1781437845000,-500.0,0.00028492,7]
[425033149,1781437845000,-500.0,0.00028492,7]
[425033132,1781437845000,-356.73,0.00028492,8]
[425033130,1781437845000,-500.0,0.00028492,8]
[425033117,1781437845000,-500.0,0.00028492,8]
[425033121,1781437845000,-500.0,0.00028492,8]
[425033124,1781437845000,-500.0,0.00028492,8]
[425033119,1781437845000,-500.0,0.00028492,8]
[425033134,1781437845000,-500.0,0.00028492,8]
[425033137,1781437845000,-178.3,0.00028492,8]
[425033136,1781437845000,-500.0,0.00028492,8]
[425033135,1781437845000,-457.94,0.00028492,7]
[425033133,1781437845000,-500.0,0.00028492,8]
[425033139,1781437845000,-500.0,0.00028492,8]
[425033128,1781437845000,-159.37,0.00028492,8]
[425033141,1781437845000,-387.47,0.00028492,8]
[425033142,1781437845000,-516.11,0.00028492,8]
[425033146,1781437845000,-500.0,0.00028492,8]
[425033154,1781437845000,-500.0,0.00028492,7]
[425033144,1781437845000,-500.0,0.00028492,8]
[425033147,1781437845000,-500.0,0.00028492,8]
[425033151,1781437845000,-500.0,0.00028492,7]
[425033148,1781437845000,-500.0,0.00028492,7]
[425033145,1781437845000,-407.8,0.00028492,8]
[425033140,1781437845000,-427.35,0.00028492,8]
[425033138,1781437845000,-383.86,0.00028492,8]
[425033143,1781437845000,-500.0,0.00028492,8]
[425033153,1781437845000,-500.0,0.00028492,7]
[425033222,1781437846000,-500.0,0.00028766,7]
[425033223,1781437846000,-500.0,0.00028766,7]
[425033218,1781437846000,-500.0,0.00028766,7]
[425033226,1781437846000,-610.73,0.00028766,7]
[425033213,1781437846000,-500.0,0.00028766,8]
[425033205,1781437846000,-341.36,0.0002871,2]
[425033214,1781437846000,-500.0,0.00028766,8]
[425033212,1781437846000,-500.0,0.00028766,8]
[425033219,1781437846000,-500.0,0.00028766,7]
[425033217,1781437846000,-500.0,0.00028766,7]
[425033215,1781437846000,-500.0,0.00028766,8]
[425033227,1781437846000,-610.73,0.00028766,7]
[425033221,1781437846000,-500.0,0.00028766,7]
[425033224,1781437846000,-500.0,0.00028766,7]
[425033225,1781437846000,-500.0,0.00028766,7]
[425033230,1781437846000,-610.73,0.00028766,7]
[425033229,1781437846000,-610.73,0.00028766,7]
[425033228,1781437846000,-610.73,0.00028766,7]
[425033231,1781437846000,-163.62521076,0.00028766,20]
[425033236,1781437846000,-500.0,0.00028767,8]
[425033234,1781437846000,-636.44,0.00028767,8]
[425033235,1781437846000,-1538.17,0.00028767,8]
[425033233,1781437846000,-500.0,0.00028767,8]
[425033216,1781437846000,-500.0,0.00028766,7]
[425033220,1781437846000,-500.0,0.00028766,7]
[425033210,1781437846000,-500.0,0.00028766,8]
[425033198,1781437846000,-795.97,0.0002871,2]
[425033208,1781437846000,-500.0,0.00028766,8]
[425033182,1781437846000,-150.0,0.00028522,2]
[425033186,1781437846000,-151.0,0.00028522,7]
[425033184,1781437846000,-6077.0,0.00028522,2]
[425033188,1781437846000,-151.0,0.00028522,7]
[425033185,1781437846000,-46430.16851454,0.00028522,2]
[425033190,1781437846000,-158.24913116,0.00028544,2]
[425033189,1781437846000,-151.0,0.00028543,2]
[425033191,1781437846000,-262.3707909,0.00028575,2]
[425033187,1781437846000,-151.0,0.00028522,7]
[425033183,1781437846000,-3644.0,0.00028522,2]
[425033202,1781437846000,-360.0,0.0002871,2]
[425033211,1781437846000,-500.0,0.00028766,8]
[425033203,1781437846000,-240.0,0.0002871,2]
[425033199,1781437846000,-331.65,0.0002871,2]
[425033195,1781437846000,-6937.51630933,0.00028615,2]
[425033201,1781437846000,-272.77,0.0002871,2]
[425033194,1781437846000,-500.0,0.00028608,16]
[425033193,1781437846000,-93160.5088649,0.000286,2]
[425033196,1781437846000,-185.0,0.00028625,3]
[425033197,1781437846000,-2108.70012597,0.00028694,14]
[425033200,1781437846000,-654.65,0.0002871,2]
[425033204,1781437846000,-819.26,0.0002871,2]
[425033207,1781437846000,-520.0,0.00028761,30]
[425033206,1781437846000,-1365.5,0.00028745,2]
[425033192,1781437846000,-500.0,0.00028599,8]
[425033237,1781437846000,-1000.0,0.00028767,8]
[425033232,1781437846000,-500.0,0.00028766,8]
[425033238,1781437846000,-1000.0,0.00028767,8]
[425033270,1781437846000,-153.0,0.0002902,30]
[425033269,1781437846000,-153.0,0.0002902,30]
[425033271,1781437846000,-174.0,0.0002902,30]
[425033274,1781437846000,-155.0,0.0002902,30]
[425033273,1781437846000,-156.0,0.0002902,30]
[425033272,1781437846000,-155.0,0.0002902,30]
[425033278,1781437846000,-218.46,0.0002904,8]
[425033277,1781437846000,-500.0,0.0002904,8]
[425033276,1781437846000,-500.0,0.0002904,8]
[425033275,1781437846000,-154.0,0.0002902,30]
[425033279,1781437846000,-500.0,0.0002904,8]
[425033264,1781437846000,-154.0,0.00029012,30]
[425033283,1781437846000,-205.12,0.0002904,7]
[425033286,1781437846000,-610.73,0.0002904,7]
[425033291,1781437846000,-500.0,0.00029041,8]
[425033282,1781437846000,-500.0,0.0002904,7]
[425033285,1781437846000,-610.73,0.0002904,7]
[425033284,1781437846000,-610.73,0.0002904,7]
[425033290,1781437846000,-610.91,0.0002904,7]
[425033288,1781437846000,-610.73,0.0002904,7]
[425033287,1781437846000,-610.73,0.0002904,7]
[425033289,1781437846000,-610.73,0.0002904,7]
[425033292,1781437846000,-302.94,0.00029041,2]
[425033239,1781437846000,-500.0,0.00028767,8]
[425033281,1781437846000,-443.54,0.0002904,8]
[425033265,1781437846000,-233.0,0.00029012,30]
[425033280,1781437846000,-220.26,0.0002904,8]
[425033259,1781437846000,-500.0,0.00029,2]
[425033268,1781437846000,-156.0,0.0002902,30]
[425033240,1781437846000,-2000.0,0.00028767,2]
[425033244,1781437846000,-105971.41,0.000288,2]
[425033245,1781437846000,-1395.09835287,0.0002886,2]
[425033241,1781437846000,-209.09033813,0.0002879,2]
[425033243,1781437846000,-610.73,0.00028799,7]
[425033242,1781437846000,-500.0,0.00028799,7]
[425033246,1781437846000,-500.0,0.00028999,8]
[425033251,1781437846000,-500.0,0.00028999,7]
[425033247,1781437846000,-408.20166231,0.00028999,8]
[425033249,1781437846000,-500.0,0.00028999,8]
[425033250,1781437846000,-500.0,0.00028999,8]
[425033253,1781437846000,-500.0,0.00028999,8]
[425033248,1781437846000,-500.0,0.00028999,8]
[425033256,1781437846000,-10000.0,0.00029,2]
[425033266,1781437846000,-159.0,0.00029012,30]
[425033260,1781437846000,-500.0,0.00029,2]
[425033267,1781437846000,-152.0,0.00029012,30]
[425033261,1781437846000,-500.0,0.00029,2]
[425033262,1781437846000,-153.0,0.00029012,30]
[425033263,1781437846000,-157.0,0.00029012,30]
[425033254,1781437846000,-12580.65167462,0.00029,2]
[425033252,1781437846000,-610.73,0.00028999,7]
[425033255,1781437846000,-70922.36193743,0.00029,7]
[425033257,1781437846000,-1113.00676082,0.00029,2]
[425033258,1781437846000,-216.06106235,0.00029,30]
[425033354,1781437847000,-291.16496442,0.00029249,7]
[425033372,1781437847000,-250.28083835,0.00029249,7]
[425033365,1781437847000,-230.65257896,0.00029249,7]
[425033361,1781437847000,-249.08751115,0.00029249,7]
[425033352,1781437847000,-210.33571224,0.00029249,7]
[425033347,1781437847000,-239.88644449,0.00029249,7]
[425033339,1781437847000,-520.60868504,0.00029249,2]